bitfinex/quotes_ETHUSD_20260106
["timestamp","ask_amount","ask_price","bid_price","bid_amount"]
[1767711019016,12.2003294,3278.6,3276.4,0.0212711]
[1767711019216,6.1001647,3278.6,3276.9,0.0212711]
[1767711019419,12.19862906,3279.1,3276.6,0.05179054]
[1767711019718,12.19862906,3279.1,3276.8,0.0212711]
[1767711019920,1.23586291,3279.0,3276.9,0.03051664]
[1767711020133,1.23586291,3279.0,3276.6,0.0212711]
[1767711020334,1.23586291,3279.0,3276.8,0.0212711]
[1767711020856,1.23586291,3279.0,3276.4,0.0212711]
[1767711021154,1.23586291,3279.0,3276.8,0.0212711]
[1767711021359,5.54273737,3279.7,3277.2,0.0212711]
[1767711021360,3.0498963,3278.8,3277.2,0.0212711]
[1767711021565,5.54273737,3279.7,3277.4,0.0212711]
[1767711021566,3.04929468,3279.5,3277.4,0.0212711]
[1767711021770,6.09830466,3279.6,3277.8,0.0212711]
[1767711022049,6.09830466,3279.6,3277.9,0.03050733]
[1767711022246,0.60983047,3279.5,3278.0,0.0212711]
[1767711022543,6.09830466,3279.6,3278.1,0.03050547]
[1767711023225,6.09793364,3279.8,3278.2,0.0212711]
[1767711023450,0.002,3279.9,3278.3,3.53061679]
[1767711023618,0.002,3279.1,3278.3,3.0502873]
[1767711023819,0.002,3279.1,3278.3,0.5517036]
[1767711024046,0.002,3279.1,3277.3,2.46674873]
[1767711024232,0.002,3279.1,3277.6,3.05099398]
[1767711024423,0.002,3279.1,3277.3,2.46674873]
[1767711024424,0.0212711,3279.0,3277.3,2.46674873]
[1767711024863,0.002,3279.1,3277.7,3.05091435]
[1767711025152,0.0232711,3280.5,3278.0,2.46674873]
[1767711025357,3.04840873,3280.4,3278.2,3.05045451]
[1767711025527,0.002,3280.5,3278.6,2.46674873]
[1767711025716,0.002,3280.5,3278.7,0.25952256]
[1767711025929,0.002,3280.5,3278.9,2.72627129]
[1767711026222,3.05035982,3280.5,3279.0,0.28862713]
[1767711026423,6.09871964,3280.5,3278.9,2.46674873]
[1767711026750,3.05035982,3280.5,3278.4,2.49725141]
[1767711026955,3.05035982,3280.5,3278.5,2.72627129]
[1767711027155,0.002,3280.5,3278.5,2.72627129]
[1767711027322,0.002,3280.5,3278.3,0.0212711]
[1767711027323,0.002,3280.5,3279.0,11.61587954]
[1767711027650,0.002,3280.5,3279.1,1.16158795]
[1767711028022,0.002,3280.5,3279.0,8.56616927]
[1767711028222,0.002,3280.5,3279.0,2.46674873]
[1767711028430,0.002,3280.5,3278.8,3.04987165]
[1767711028759,0.002,3280.5,3278.9,6.09955732]
[1767711028958,0.002,3280.5,3279.0,2.88627129]
[1767711029125,0.002,3280.5,3279.1,3.97529225]
[1767711029321,0.002,3280.5,3279.2,2.46674873]
[1767711029653,0.002,3280.5,3279.3,6.09886256]
[1767711030557,0.002,3280.5,3279.1,1.50854352]
[1767711030756,0.002,3280.5,3278.5,0.03050175]
[1767711030988,0.002,3280.5,3278.8,3.04982702]
[1767711031197,0.002,3280.5,3278.6,0.2756773]
[1767711031198,0.002,3280.5,3278.9,3.08029754]
[1767711031614,0.002,3280.5,3278.6,0.2756773]
[1767711031770,0.002,3280.5,3278.9,3.0497669]
[1767711032079,0.002,3280.5,3278.9,6.13006821]
[1767711032267,0.002,3280.5,3279.0,0.61300682]
[1767711032455,0.002,3280.5,3279.1,0.03049617]
[1767711032880,0.002,3280.5,3278.9,6.09957018]
[1767711033086,0.002,3280.5,3278.6,0.2756773]
[1767711033487,0.0212711,3280.4,3278.6,0.2756773]
[1767711033688,0.0212711,3280.2,3278.1,3.05053072]
[1767711033893,12.1952632,3280.5,3277.6,2.49043505]
[1767711033894,0.0212711,3280.3,3277.6,2.49043505]
[1767711034097,0.0212711,3280.2,3277.8,2.49043505]
[1767711034266,0.0212711,3280.2,3278.2,3.0503966]
[1767711034267,0.0212711,3280.0,3278.2,3.0503966]
[1767711034464,0.0212711,3280.0,3278.3,3.08079682]
[1767711034685,0.0212711,3280.2,3278.6,3.05004257]
[1767711034873,0.0212711,3280.4,3278.7,0.03049989]
[1767711035077,0.61199027,3280.3,3278.7,0.03049989]
[1767711035272,0.0212711,3280.2,3277.8,5.5412171]
[1767711035492,6.09774688,3279.9,3277.9,3.0507337]
[1767711035892,6.09974688,3279.9,3277.9,6.1014674]
[1767711036098,0.0212711,3279.8,3277.9,3.0507337]
[1767711036297,0.6121018,3279.7,3277.9,6.1014674]
[1767711036501,0.6121018,3279.7,3278.0,0.0305064]
[1767711036800,0.002,3279.9,3278.4,2.49043505]
[1767711036964,0.002,3279.9,3278.5,0.03050175]
[1767711037477,0.002,3279.9,3278.6,6.1001647]
[1767711037674,0.002,3279.9,3278.7,2.52093494]
[1767711037899,0.002,3279.9,3278.8,2.74995761]
[1767711038098,0.002,3280.2,3278.9,0.30854378]
[1767711038295,0.002,3280.2,3279.1,2.49043505]
[1767711038880,0.002,3280.2,3279.2,0.03049524]
[1767711039606,0.002,3280.5,3279.4,2.49043505]
[1767711039807,0.002,3280.5,3279.5,2.5209275]
[1767711040008,0.002,3281.3,3279.6,2.7425278]
[1767711040307,0.002,3281.3,3279.7,2.52092564]
[1767711040886,0.002,3281.3,3279.7,2.49043505]
[1767711041106,0.002,3281.3,3279.7,2.52092564]
[1767711041320,0.002,3281.3,3279.7,2.49043505]
[1767711041610,0.002,3281.3,3279.9,6.09774688]
[1767711041783,0.002,3281.3,3280.0,2.52092285]
[1767711042220,0.002,3281.6,3280.0,2.52092285]
[1767711042719,0.002,3281.6,3280.2,2.49043505]
[1767711043315,0.002,3281.6,3280.3,2.52092006]
[1767711043480,0.002,3281.6,3280.3,2.49043505]
[1767711044033,0.002,3281.6,3280.4,0.03048408]
[1767711044180,0.002,3281.6,3280.4,0.58742616]
[1767711044386,0.002,3281.6,3280.4,3.07786121]
[1767711045008,0.002,3281.9,3280.4,0.58742616]
[1767711045208,0.002,3281.9,3280.5,2.49043505]
[1767711045599,2.51264785,3284.5,3281.5,2.74995761]
[1767711045801,0.0212711,3284.9,3282.1,2.49043505]
[1767711046008,0.0212711,3284.7,3282.1,2.49043505]
[1767711046208,0.0212711,3284.9,3282.1,2.49043505]
[1767711046384,0.0212711,3284.9,3281.9,0.0212711]
[1767711046385,6.08828006,3285.0,3282.5,2.49043505]
[1767711046591,0.0212711,3283.8,3281.8,2.49043505]
[1767711046993,0.0212711,3283.6,3281.8,2.49043505]
[1767711047201,0.0212711,3283.4,3281.8,2.49043505]
[1767711047418,0.0212711,3283.3,3281.8,2.49043505]
[1767711047718,6.09161792,3283.2,3281.0,5.53821979]
[1767711047923,0.6112889,3283.1,3281.8,3.04708386]
[1767711048237,0.6112889,3283.1,3281.4,3.04746718]
[1767711048395,0.6112889,3283.1,3281.4,3.04744519]
[1767711048589,0.6112889,3283.1,3281.4,2.49043505]
[1767711048834,0.6112889,3283.1,3281.4,5.53790172]
[1767711049017,3.04455506,3284.6,3281.9,2.49043505]
[1767711049193,3.04492896,3284.2,3281.9,2.49043505]
[1767711049536,0.0212711,3284.1,3281.9,2.49043505]
[1767711049736,6.0905049,3283.8,3281.9,5.53738127]
[1767711049912,0.0212711,3284.3,3282.0,0.16]
[1767711050112,6.08957768,3284.3,3282.1,0.87443967]
[1767711050512,3.04478884,3284.3,3282.2,2.49043505]
[1767711050714,0.002,3284.7,3282.7,2.74995761]
[1767711050905,3.04644308,3284.7,3282.7,2.74995761]
[1767711051105,3.04644308,3284.7,3282.8,2.65043505]
[1767711051306,3.04669613,3284.4,3282.8,2.49043505]
[1767711051622,3.04669613,3284.4,3282.5,8.74335203]
[1767711051623,3.34947388,3284.3,3282.5,8.74335203]
[1767711051796,3.34947388,3284.3,3282.6,2.49043505]
[1767711051998,0.30466961,3284.3,3282.6,2.49043505]
[1767711052210,6.08959783,3284.3,3282.6,2.49043505]
[1767711053022,0.002,3284.4,3282.6,2.49043505]
[1767711053224,0.002,3284.4,3282.9,2.49043505]
[1767711053642,0.002,3284.4,3283.0,6.09198902]
[1767711053846,0.002,3284.4,3283.0,3.04599451]
[1767711054046,0.002,3284.4,3282.9,8.58257376]
[1767711054218,0.002,3284.4,3282.9,9.44083114]
[1767711054746,0.002,3284.4,3283.0,2.49043505]
[1767711055339,0.002,3284.4,3282.7,3.04626672]
[1767711055667,0.002,3284.4,3282.6,2.49043505]
[1767711056014,0.002,3284.4,3282.8,2.49043505]
[1767711056225,0.002,3284.4,3283.0,2.49043505]
[1767711056447,0.002,3284.4,3283.1,0.03045901]
[1767711056840,0.002,3284.4,3283.1,2.52089406]
[1767711057147,0.002,3284.4,3283.1,2.49043505]
[1767711057347,0.002,3284.4,3282.5,8.58335203]
[1767711057516,0.002,3284.4,3282.6,1.0183352]
[1767711057716,0.002,3284.4,3282.8,8.58279523]
[1767711058052,0.002,3284.4,3282.9,2.52089592]
[1767711058919,0.002,3284.4,3283.1,2.49043505]
[1767711059120,0.002,3284.7,3283.3,2.49043505]
[1767711059320,0.002,3284.7,3283.4,2.77298059]
[1767711059830,0.002,3285.1,3283.6,2.49043505]
[1767711060030,0.002,3285.1,3283.5,3.04553068]
[1767711060229,0.002,3285.1,3283.7,0.03045345]
[1767711060439,0.002,3285.1,3283.4,3.29768753]
[1767711060773,0.002,3285.1,3283.5,0.0304553]
[1767711061104,0.002,3285.1,3283.4,5.53605809]
[1767711061243,0.002,3284.4,3282.8,3.04615977]
[1767711061449,0.002,3284.4,3283.1,3.04582618]
[1767711061682,0.002,3284.4,3283.2,0.03045808]
[1767711061976,0.002,3284.4,3282.9,2.59425579]
[1767711062180,0.002,3284.4,3283.1,3.04581628]
[1767711062385,0.002,3284.4,3283.3,6.09140861]
[1767711062583,0.002,3284.4,3283.4,0.03045623]
[1767711062789,0.002,3284.4,3283.0,2.62006406]
[1767711063077,0.002,3284.4,3282.9,0.25942558]
[1767711063245,0.002,3284.4,3282.5,3.04645593]
[1767711063576,0.002,3284.4,3282.7,3.04626868]
[1767711063874,0.002,3284.4,3282.2,0.001]
[1767711063875,0.002,3284.4,3282.8,2.65052586]
[1767711064083,0.002,3284.4,3282.9,6.0921746]
[1767711064379,0.002,3284.4,3283.1,2.62006406]
[1767711064574,0.002,3284.4,3283.2,2.65052214]
[1767711064978,0.002,3284.4,3283.2,2.62006406]
[1767711065277,0.002,3284.4,3283.0,0.87427005]
[1767711065483,0.002,3284.4,3282.6,2.62006406]
[1767711065666,0.002,3284.4,3282.2,0.001]
[1767711065667,6.09031942,3283.9,3282.2,0.001]
[1767711065847,12.18063884,3283.9,3282.2,0.001]
[1767711066050,0.0212711,3283.7,3282.2,0.03146736]
[1767711066247,0.0212711,3283.3,3282.2,0.001]
[1767711066455,0.0212711,3283.7,3282.2,0.001]
[1767711066678,0.0212711,3283.5,3282.2,0.001]
[1767711066880,0.0212711,3283.3,3282.2,0.001]
[1767711067048,0.0212711,3283.4,3282.2,0.001]
[1767711067247,6.09031942,3283.9,3282.2,0.001]
[1767711067248,0.0212711,3283.8,3282.2,0.001]
[1767711067549,0.0212711,3283.8,3282.2,0.52976984]
[1767711067749,3.0457162,3283.3,3282.2,0.001]
[1767711067947,3.04553068,3283.5,3282.2,0.001]
[1767711068176,6.09106136,3283.5,3282.2,0.03146736]
[1767711068387,3.04553068,3283.5,3282.2,0.001]
[1767711068597,3.06672433,3283.6,3282.2,0.001]
[1767711068598,3.04546514,3283.6,3282.2,0.001]
[1767711068806,0.39611402,3283.5,3282.2,0.001]
[1767711069294,3.04515971,3283.9,3282.2,0.001]
[1767711069507,0.0212711,3283.8,3282.2,0.001]
[1767711069687,0.0212711,3283.4,3282.2,0.001]
[1767711070105,8.6094806,3283.5,3282.2,0.001]
[1767711070489,3.04553068,3283.5,3282.2,0.001]
[1767711070690,0.61122561,3283.4,3282.2,0.001]
[1767711071001,0.63249671,3283.4,3282.2,0.001]
[1767711071189,0.0212711,3283.2,3282.2,0.001]
[1767711071898,0.0212711,3282.8,3281.1,3.04775202]
[1767711072099,0.0212711,3282.8,3281.2,6.0952878]
[1767711072318,3.0460873,3282.9,3281.3,0.6400045]
[1767711072598,6.1134457,3282.9,3281.3,0.60952878]
[1767711072800,0.0212711,3282.5,3280.7,2.62006406]
[1767711072969,12.2056203,3282.9,3280.8,0.03048037]
[1767711072970,0.0212711,3282.8,3280.8,0.03048037]
[1767711073171,6.0921746,3282.9,3281.2,6.09532362]
[1767711073498,0.0212711,3282.8,3281.2,3.04765814]
[1767711073798,3.06747252,3282.8,3280.8,9.14411118]
[1767711074002,3.06747252,3282.8,3280.9,3.79648158]
[1767711074003,0.30674725,3282.7,3280.9,3.79648158]
[1767711074305,0.0212711,3283.2,3281.0,3.14884505]
[1767711074601,3.06690623,3283.4,3281.0,3.14884505]
[1767711074803,0.0212711,3282.9,3281.0,3.14884505]
[1767711075101,0.0212711,3283.1,3281.0,3.14884505]
[1767711075102,0.0212711,3283.1,3281.0,2.65054257]
[1767711075271,0.0212711,3283.1,3281.0,3.14884505]
[1767711075272,0.0212711,3282.9,3281.0,3.14884505]
[1767711075470,0.0212711,3283.3,3281.2,2.62006406]
[1767711075667,3.04556541,3283.5,3281.4,2.62006406]
[1767711075874,0.0212711,3284.0,3281.7,2.62006406]
[1767711076096,0.0212711,3284.0,3281.9,2.62006406]
[1767711076302,0.0212711,3284.0,3282.0,2.65053328]
[1767711076630,0.30682535,3283.9,3282.1,0.31488358]
[1767711076928,0.0212711,3282.9,3281.4,0.49830248]
[1767711077230,0.0212711,3282.9,3279.9,0.0212711]
[1767711077231,2.51841924,3282.8,3280.1,0.0212711]
[1767711077430,2.51841924,3282.8,3280.4,3.0695883]
[1767711077747,2.51841924,3282.6,3280.4,3.66012825]
[1767711077906,2.51841924,3282.4,3280.5,3.07879353]
[1767711078106,2.51841924,3282.4,3280.5,3.06958148]
[1767711078512,2.51841924,3282.4,3280.5,3.10006463]
[1767711078718,2.51841924,3282.4,3280.4,0.61181105]
[1767711079023,1.08798896,3282.3,3280.3,0.0212711]
[1767711079226,3.6064082,3282.3,3280.1,0.0212711]
[1767711079530,3.6064082,3282.3,3280.1,3.06993232]
[1767711079876,3.6064082,3282.3,3279.7,0.0212711]
[1767711079877,2.51841924,3282.0,3279.7,0.0212711]
[1767711080154,3.07921362,3281.9,3279.7,0.0212711]
[1767711080332,3.07921362,3281.9,3279.7,0.05176169]
[1767711080633,3.07921362,3281.9,3279.7,0.0212711]
[1767711080830,3.07921362,3281.9,3279.5,0.0212711]
[1767711081034,3.07921362,3281.9,3279.7,0.0212711]
[1767711081207,2.51841924,3281.7,3279.5,0.0212711]
[1767711081729,2.51841924,3281.7,3279.3,3.07070078]
[1767711082033,2.51841924,3281.5,3279.4,0.0212711]
[1767711082401,2.51841924,3281.5,3279.1,0.0212711]
[1767711082622,2.51841924,3281.5,3279.3,3.04942781]
[1767711082929,0.7800676,3281.4,3279.2,3.07077727]
[1767711083115,2.51841924,3281.3,3279.2,3.07078484]
[1767711083318,2.51841924,3281.3,3279.2,0.0212711]
[1767711083649,2.51841924,3281.3,3279.0,0.0304971]
[1767711083825,6.09533096,3281.2,3279.5,0.0212711]
[1767711084133,6.09533096,3281.2,3279.3,0.0212711]
[1767711084134,0.56079438,3281.1,3279.6,0.05176262]
[1767711084551,0.56079438,3281.1,3278.9,0.001]
[1767711084552,0.0212711,3279.6,3278.9,0.001]
[1767711084706,0.0212711,3280.2,3278.9,0.001]
[1767711085030,0.0212711,3280.9,3278.9,0.001]
[1767711085031,0.0212711,3280.7,3278.9,2.62106406]
[1767711085239,0.0212711,3280.5,3279.1,3.04961727]
[1767711085537,0.0212711,3280.7,3279.2,0.03049524]
[1767711085723,0.0212711,3280.9,3279.2,0.03049524]
[1767711086033,0.0212711,3280.8,3279.4,2.62006406]
[1767711086229,3.62988068,3281.1,3279.5,1.20732824]
[1767711086430,0.0212711,3280.9,3279.5,1.20732824]
[1767711086738,0.0212711,3280.7,3279.5,1.17683579]
[1767711086909,0.0212711,3280.5,3279.4,2.62006406]
[1767711087228,6.67769588,3281.1,3279.5,0.03049245]
[1767711087402,0.0212711,3280.9,3279.4,2.62006406]
[1767711087605,0.0212711,3280.9,3279.2,3.05051491]
[1767711087821,6.09644576,3280.6,3279.2,0.001]
[1767711088018,0.61177169,3280.5,3279.2,0.001]
[1767711088341,3.04822288,3280.6,3279.2,0.001]
[1767711088506,3.60858012,3281.1,3279.2,2.6515593]
[1767711089138,0.56079438,3281.1,3279.2,2.6515593]
[1767711089439,0.03049167,3281.5,3279.6,2.62006406]
[1767711089652,0.0212711,3282.0,3279.8,2.62006406]
[1767711089811,3.04682977,3282.1,3280.0,2.62006406]
[1767711090016,0.0212711,3282.0,3280.1,6.09737508]
[1767711090213,3.04682977,3282.1,3280.1,9.14606262]
[1767711090516,3.04682977,3282.1,3280.2,0.03048594]
[1767711090717,3.04682977,3282.1,3280.3,0.91765486]
[1767711090718,0.30468298,3282.0,3280.3,0.91765486]
[1767711091028,0.33517465,3282.0,3280.4,0.03048408]
[1767711091207,0.33517465,3282.0,3280.5,0.03048315]
[1767711091718,0.0212711,3281.8,3280.3,0.91765486]
[1767711091917,0.0212711,3281.8,3280.1,3.04868754]
[1767711091918,3.047294,3281.6,3280.1,0.03048687]
[1767711092114,0.30777857,3281.5,3280.1,0.03048687]
[1767711092526,0.33827024,3281.5,3280.0,3.04877526]
[1767711092920,0.33827024,3281.5,3280.0,6.09755574]
[1767711093135,0.33827024,3281.5,3280.0,3.04877526]
[1767711093342,0.64328582,3281.4,3280.0,6.70731853]
[1767711093543,0.05176277,3281.3,3279.9,3.04881655]
[1767711093918,0.64328582,3281.4,3280.0,0.0304878]
[1767711094253,0.64328582,3281.4,3280.1,6.09737508]
[1767711094536,3.69076752,3281.4,3280.1,3.96635913]
[1767711095449,3.69076752,3281.4,3280.1,3.04868754]
[1767711095638,3.69076752,3281.4,3280.1,6.09737508]
[1767711095840,0.64328582,3281.4,3280.2,0.03048594]
[1767711096056,3.04682977,3282.1,3280.3,6.09700332]
[1767711096352,3.0460873,3282.9,3280.6,2.50133278]
[1767711096514,3.07657897,3282.9,3280.6,2.531815]
[1767711096721,0.30978501,3282.8,3280.8,2.50133278]
[1767711097247,0.30978501,3282.8,3281.0,2.50133278]
[1767711097445,3.0671605,3283.2,3281.0,2.50133278]
[1767711097446,0.03049167,3283.2,3281.0,2.50133278]
[1767711097945,0.03049167,3283.1,3281.0,2.50133278]
[1767711098347,0.03049167,3283.1,3281.2,2.50133278]
[1767711098348,3.07641751,3283.1,3281.2,2.50133278]
[1767711098674,0.03049167,3283.0,3281.2,2.50133278]
[1767711098845,0.61223434,3282.9,3281.3,0.85968495]
[1767711099239,6.12234335,3283.1,3281.3,0.85968495]
[1767711099439,0.03049167,3283.1,3281.4,2.50133278]
[1767711099745,3.04553068,3283.5,3281.4,2.50133278]
[1767711100244,6.1215694,3283.5,3281.4,2.50133278]
[1767711100543,8.61189633,3283.5,3281.5,6.09477372]
[1767711100745,0.0212711,3283.2,3281.5,3.04738686]
[1767711100945,2.51159803,3283.0,3280.8,2.50133278]
[1767711101249,0.0212711,3282.6,3280.3,0.16]
[1767711101415,2.5208186,3282.5,3280.3,0.16]
[1767711101620,2.5208186,3282.5,3281.3,3.04756303]
[1767711101815,0.0212711,3282.8,3281.4,3.04745187]
[1767711102044,0.03049167,3282.8,3281.3,3.04753861]
[1767711102246,0.0212711,3282.7,3281.3,3.04753861]
[1767711102425,0.28470064,3282.6,3281.4,3.04743905]
[1767711102626,3.3311378,3282.6,3280.6,3.04816239]
[1767711102831,3.3311378,3282.6,3280.6,6.87816239]
[1767711103027,6.37757496,3282.6,3280.6,6.87816239]
[1767711103232,6.34708329,3282.6,3280.6,3.83]
[1767711103428,6.34708329,3282.6,3280.7,1.29749474]
[1767711103429,0.53125763,3282.5,3280.7,1.29749474]
[1767711103953,0.03049167,3282.4,3280.7,1.29749474]
[1767711104153,0.53125763,3282.5,3280.7,1.29749474]
[1767711104351,0.53125763,3282.5,3280.8,0.03048037]
[1767711104555,0.53125763,3282.5,3280.7,1.29749474]
[1767711104738,0.38623954,3282.4,3280.8,11.64544396]
[1767711105048,3.3311378,3282.6,3280.9,2.53181222]
[1767711105049,0.25420897,3282.6,3280.9,2.53181222]
[1767711105248,6.09180346,3283.1,3280.9,2.53181222]
[1767711105450,0.03049167,3283.0,3280.9,2.50133278]
[1767711105651,0.03049167,3283.0,3280.9,2.53181222]
[1767711106251,0.0212711,3282.8,3280.9,2.50133278]
[1767711106444,0.0212711,3282.6,3280.9,2.50133278]
[1767711106632,0.0212711,3282.4,3280.9,2.50133278]
[1767711106836,6.09347388,3282.2,3280.9,2.50133278]
[1767711107051,0.64288823,3282.1,3280.7,3.04804525]
[1767711107348,0.64288823,3282.1,3280.6,0.03048222]
[1767711107349,0.66415933,3282.1,3280.6,0.03048222]
[1767711107524,0.66415933,3282.1,3280.8,3.04798503]
[1767711108563,0.66415933,3282.1,3280.4,3.04834274]
[1767711108725,0.67576332,3282.0,3280.5,3.04825197]
[1767711108928,12.23982453,3281.9,3280.0,0.001]
[1767711109131,0.0212711,3281.5,3280.0,0.001]
[1767711109476,0.0212711,3281.3,3280.0,0.001]
[1767711109875,0.0212711,3281.1,3280.0,0.001]
[1767711110362,0.0212711,3280.9,3280.0,0.001]
[1767711110574,0.0212711,3280.5,3279.0,3.04969482]
[1767711110776,0.0212711,3280.7,3278.5,2.50133278]
[1767711110922,0.0212711,3280.4,3278.6,3.05006971]
[1767711111127,0.63304279,3280.4,3278.6,6.13065288]
[1767711111328,0.0212711,3280.2,3277.5,0.0212711]
[1767711111558,0.0212711,3280.2,3278.1,3.0505274]
[1767711111559,0.0212711,3280.0,3278.1,3.0505274]
[1767711111766,0.0212711,3280.0,3277.9,2.50133278]
[1767711111767,0.0212711,3279.8,3277.9,2.50133278]
[1767711111940,0.0212711,3279.4,3277.7,3.05083248]
[1767711112261,0.0212711,3279.2,3277.7,0.30508325]
[1767711112565,0.0212711,3278.8,3277.2,3.05131653]
[1767711112872,0.0212711,3278.8,3277.1,0.001]
[1767711112873,0.0212711,3278.6,3277.1,0.001]
[1767711113173,6.10035076,3278.5,3277.1,0.001]
[1767711113371,0.36124833,3278.4,3277.1,0.001]
[1767711113870,0.0212711,3278.0,3276.3,0.03052223]
[1767711114055,0.38251943,3278.4,3276.3,2.53185501]
[1767711114259,0.0212711,3278.2,3276.3,2.53185501]
[1767711114938,0.0212711,3278.0,3276.3,2.53185501]
[1767711115233,3.0507337,3277.9,3276.5,3.05203723]
[1767711115438,3.0507337,3277.9,3275.7,2.50133278]
[1767711115646,3.0507337,3277.9,3276.4,3.05213038]
[1767711115838,3.0507337,3277.9,3276.4,6.10426076]
[1767711116342,3.05054914,3278.1,3276.4,6.10426076]
[1767711116343,0.36124833,3278.4,3276.4,6.10426076]
[1767711116542,0.36124833,3278.4,3275.8,3.05267211]
[1767711116543,15.33960934,3278.3,3275.7,5.55402526]
[1767711116765,0.0212711,3278.1,3276.4,3.05211277]
[1767711116955,12.28915778,3278.3,3276.4,6.10424315]
[1767711117136,6.10072292,3278.3,3276.5,0.03052037]
[1767711117338,9.17244558,3278.3,3276.5,0.03052037]
[1767711117560,0.0212711,3278.1,3276.0,6.1050061]
[1767711117972,0.0212711,3277.9,3276.0,3.05250305]
[1767711118170,0.67576332,3278.2,3276.1,2.53185687]
[1767711119074,0.67576332,3278.2,3276.2,3.0523167]
[1767711119075,3.05054757,3278.1,3276.2,3.0523167]
[1767711119243,3.05054757,3278.1,3276.3,0.03052223]
[1767711119447,3.05054757,3278.1,3276.4,0.61351556]
[1767711119655,3.05054757,3278.1,3276.5,0.03052037]
[1767711119838,6.10003028,3278.7,3276.5,0.03052037]
[1767711120066,2.49032693,3278.6,3276.5,0.03052037]
[1767711120279,3.0499026,3278.8,3276.6,2.53185222]
[1767711120482,0.30499026,3278.8,3276.7,0.28370372]
[1767711120775,2.46287693,3278.8,3276.7,0.28370372]
[1767711120976,0.0212711,3279.8,3276.7,2.86732513]
[1767711120977,2.46287693,3279.5,3276.7,2.86732513]
[1767711121144,3.04943128,3279.3,3276.9,2.56197603]
[1767711121344,3.04943128,3279.3,3277.0,2.59249174]
[1767711121345,6.12935423,3279.3,3277.0,2.59249174]
[1767711121642,6.12935423,3279.3,3276.8,12.20703124]
[1767711121643,3.11486539,3279.2,3277.1,2.82335231]
[1767711121856,3.11486539,3279.2,3276.8,6.10351562]
[1767711121857,0.0212711,3278.7,3276.8,6.10351562]
[1767711122071,0.0212711,3278.7,3276.5,3.05202269]
[1767711122072,2.52320107,3278.5,3276.5,0.001]
[1767711122259,0.63420652,3279.2,3276.7,6.10367881]
[1767711122260,2.50192997,3279.1,3276.7,6.10367881]
[1767711122571,0.63420652,3279.2,3277.1,2.56197603]
[1767711122572,0.61293542,3279.2,3277.1,2.56197603]
[1767711122773,0.03049167,3279.1,3277.1,2.56197603]
[1767711123082,9.14913081,3279.0,3277.1,3.30977664]
[1767711123246,0.03049167,3278.9,3277.1,3.30977664]
[1767711123572,0.03049167,3278.9,3277.1,0.25832471]
[1767711123869,0.03049167,3278.9,3277.2,2.59248988]
[1767711124471,0.03049167,3278.9,3277.2,2.56197603]
[1767711124673,0.91796225,3278.8,3276.6,2.58324713]
[1767711124875,0.03049167,3278.7,3276.7,3.05181627]
[1767711125166,0.03049167,3278.7,3276.6,2.56197603]
[1767711125167,18.36749316,3278.6,3276.6,2.56197603]
[1767711125358,2.50192997,3278.4,3276.5,0.001]
[1767711125562,0.03049167,3278.5,3275.4,2.56197603]
[1767711125563,0.0212711,3277.9,3275.4,2.56197603]
[1767711125774,2.50192997,3277.8,3275.5,3.05290459]
[1767711125976,2.50192997,3277.8,3274.9,3.07474928]
[1767711125977,2.50192997,3277.8,3276.0,3.05249311]
[1767711126190,0.03049167,3277.7,3275.8,3.05268526]
[1767711126346,0.03049167,3277.7,3275.5,3.05291039]
[1767711126347,2.50192997,3277.7,3275.5,3.05291039]
[1767711126547,0.03049167,3277.6,3275.3,2.56197603]
[1767711126976,0.03049167,3277.6,3275.8,3.05265323]
[1767711127185,0.03049167,3277.6,3275.4,3.05298045]
[1767711127497,2.50192997,3277.2,3275.5,0.56149565]
[1767711127843,0.03049167,3277.4,3275.6,0.03052875]
[1767711128289,0.03049167,3277.4,3275.2,2.56197603]
[1767711128978,0.05176277,3277.4,3275.2,2.56197603]
[1767711129204,6.16716376,3276.6,3274.5,2.56197603]
[1767711129494,9.77282807,3276.5,3274.3,0.03054087]
[1767711129698,9.77282807,3276.5,3274.3,3.08459378]
[1767711129699,12.8248653,3276.5,3274.3,3.08459378]
[1767711129848,12.8248653,3276.5,3274.3,0.03054087]
[1767711130053,2.52320107,3276.3,3273.6,2.56197603]
[1767711130281,0.25232011,3276.2,3273.8,3.05453905]
[1767711130483,2.50192997,3275.9,3273.7,0.2561976]
[1767711130786,2.50192997,3275.9,3273.7,3.05463118]
[1767711131084,2.50192997,3275.9,3273.8,0.03054554]
[1767711131255,6.10537882,3275.8,3273.7,3.05460306]
[1767711131454,6.10537882,3275.8,3273.9,0.03054461]
[1767711131659,6.10537882,3275.8,3273.9,2.59252064]
[1767711131882,0.52437758,3275.7,3274.0,0.25925206]
[1767711132188,3.02630755,3275.7,3273.1,2.56297603]
[1767711132516,3.02630755,3275.7,3273.5,3.05482543]
[1767711132517,6.16716376,3275.4,3273.5,3.05482543]
[1767711132866,6.16716376,3275.4,3273.2,0.03055114]
[1767711133074,6.16716376,3275.4,3273.4,3.05485043]
[1767711133275,9.15974595,3275.2,3273.2,3.05509864]
[1767711133707,6.1064973,3275.2,3273.2,9.1958783]
[1767711133904,6.1064973,3275.2,3273.3,2.56197603]
[1767711133905,3.05324865,3275.2,3273.3,2.56197603]
[1767711134119,3.6720197,3275.3,3273.4,2.5925253]
[1767711134321,3.05317621,3275.3,3273.4,2.5925253]
[1767711134504,6.10635242,3275.3,3273.4,2.5925253]
[1767711134813,3.05317621,3275.3,3273.4,2.5925253]
[1767711134971,6.10635242,3275.3,3273.6,2.56197603]
[1767711135172,6.10635242,3275.3,3273.8,2.56297603]
[1767711135399,6.10668376,3275.1,3273.8,0.001]
[1767711135616,12.21336752,3275.1,3273.8,0.001]
[1767711135773,12.21336752,3275.1,3273.1,0.001]
[1767711135774,2.50192997,3275.0,3273.1,0.001]
[1767711136471,2.50192997,3275.0,3272.2,0.0212711]
[1767711136472,8.69036483,3274.8,3271.9,2.56197603]
[1767711136812,8.69036483,3274.8,3270.8,0.0212711]
[1767711136813,2.50192997,3274.5,3271.8,3.05634086]
[1767711137112,2.50192997,3274.1,3271.9,0.30563409]
[1767711137313,6.16716376,3273.6,3271.4,2.56197603]
[1767711137517,6.16716376,3273.6,3270.7,0.0212711]
[1767711137518,12.21933708,3273.5,3270.9,5.61919016]
[1767711137695,12.21933708,3273.5,3271.0,0.03057169]
[1767711137696,2.50192997,3273.4,3271.0,0.03057169]
[1767711138005,0.7879551,3273.3,3271.1,0.26138188]
[1767711138210,0.7879551,3273.3,3271.4,3.07806635]
[1767711138723,0.7879551,3273.3,3271.4,6.16542955]
[1767711138899,3.05483427,3273.5,3271.6,0.0212711]
[1767711139073,6.10966854,3273.5,3271.6,0.0212711]